lending/lending_fUSD_20250924
["ID","MTS","AMOUNT","RATE_DAILY","PERIOD"]
[387529868,1758755447094,-444.18,0.00021917,2]
[387529869,1758755447105,-1922.16,0.00021917,2]
[387529870,1758755447117,-5264.02,0.00021917,2]
[387529871,1758755447127,-4206.0,0.00021917,2]
[387529872,1758755447138,-470.53,0.00021917,2]
[387529873,1758755447149,-490.8,0.00021917,2]
[387529874,1758755447159,-2235.28,0.00021917,2]
[387529875,1758755447172,-400.0,0.00021917,2]
[387529876,1758755447183,-2239.24,0.00021917,2]
[387529877,1758755447195,-1549.5,0.00021917,2]
[387529878,1758755447207,-1285.38,0.00021917,2]
[387529879,1758755447216,-400.0,0.00021917,2]
[387529880,1758755447227,-400.0,0.00021917,2]
[387529881,1758755447238,-400.0,0.00021917,2]
[387529882,1758755447249,-400.0,0.00021917,2]
[387529883,1758755447261,-3844.31,0.00021917,2]
[387529884,1758755447271,-2232.82,0.00021917,2]
[387529885,1758755447282,-517.06886766,0.00021917,2]
[387529886,1758755447293,-400.0,0.00021917,2]
[387529887,1758755447303,-1643.27,0.00021917,2]
[387529888,1758755447314,-1147.21,0.00021917,2]
[387529889,1758755447324,-1747.63,0.00021917,2]
[387529890,1758755447333,-2397.68041005,0.00021917,2]
[387529891,1758755447382,-849.38958995,0.00021917,2]
[387529892,1758755447393,-402.92986555,0.00021917,2]
[387529893,1758755447403,-400.0,0.00021917,2]
[387529894,1758755447413,-2973.3,0.00021917,2]
[387529895,1758755447423,-405.80272098,0.00021917,2]
[387529896,1758755447434,-787.27,0.00021917,2]
[387529897,1758755447444,-400.0,0.00021917,2]
[387529898,1758755447454,-1189.30642345,0.00021917,2]
[387529899,1758755447466,-3782.26778049,0.00021917,2]
[387529900,1758755447867,-412.72579606,0.00021917,2]
[387529901,1758755447878,-267.29350197,0.00021917,2]
[387529902,1758755447888,-400.0,0.00021917,2]
[387529903,1758755447898,-400.0,0.00021917,2]
[387529904,1758755447908,-400.0,0.00021917,2]
[387529905,1758755447918,-1147.2,0.00021917,2]
[387529906,1758755447928,-542.55266476,0.00021917,2]
[387529907,1758755448417,-284.74994815,0.00019999,2]
[387529908,1758755448428,-185.83612627,0.00019999,2]
[387529909,1758755448437,-249.67733524,0.00021917,2]
[387529910,1758755448447,-2629.25659034,0.00021917,2]
[387529911,1758755448553,-427.4153999,0.00021917,2]
[387529912,1758755448576,-797.14800976,0.00021917,2]
[387529913,1758755448586,-400.0,0.00021917,2]
[387529914,1758755448595,-2009.91,0.00021917,2]
[387529915,1758755448604,-1142.81,0.00021917,2]
[387529916,1758755448613,-915.8,0.00021917,2]
[387529917,1758755448623,-4033.13,0.00021917,2]
[387529918,1758755448632,-400.0,0.00021917,2]
[387529919,1758755448641,-1685.97,0.00021917,2]
[387529920,1758755448650,-463.87,0.00021917,2]
[387529921,1758755448659,-463.87,0.00021917,2]
[387529922,1758755448669,-3203.61,0.00021917,2]
[387529923,1758755448678,-400.0,0.00021917,2]
[387529924,1758755448688,-1212.72,0.00021917,2]
[387529925,1758755448697,-403.0794678,0.00021917,2]
[387529926,1758755448707,-400.0,0.00021917,2]
[387529927,1758755448718,-3537.48,0.00021917,2]
[387529928,1758755448727,-400.0,0.00021917,2]
[387529929,1758755448737,-400.0,0.00021917,2]
[387529930,1758755448747,-400.0,0.00021917,2]
[387529931,1758755448756,-400.0,0.00021917,2]
[387529932,1758755448766,-1854.18359764,0.00021917,2]
[387529933,1758755448778,-337.58640236,0.00021917,2]
[387529934,1758755448787,-62.41359764,0.00021917,2]
[387529935,1758755448817,-347.14640236,0.00021917,2]
[387529936,1758755448826,-402.78739182,0.00021917,2]
[387529937,1758755448837,-3393.75,0.00021917,2]
[387529938,1758755448847,-400.0,0.00021917,2]
[387529939,1758755448856,-2077.66172299,0.00021917,2]
[387529940,1758755448869,-810.21827701,0.00021917,2]
[387529941,1758755448879,-3486.77,0.00021917,2]
[387529942,1758755448889,-2188.52,0.00021917,2]
[387529943,1758755448899,-400.0,0.00021917,2]
[387529944,1758755448909,-400.0,0.00021917,2]
[387529945,1758755448919,-2389.95,0.00021917,2]
[387529946,1758755448929,-2659.26,0.00021917,2]
[387529947,1758755448939,-400.0,0.00021917,2]
[387529948,1758755448949,-400.0,0.00021917,2]
[387529949,1758755448959,-1835.56,0.00021917,2]
[387529950,1758755448969,-857.23,0.00021917,2]
[387529951,1758755448979,-1563.32,0.00021917,2]
[387529952,1758755448989,-400.0,0.00021917,2]
[387529953,1758755448999,-1962.46,0.00021917,2]
[387529954,1758755449009,-590.58,0.00021917,2]
[387529955,1758755449019,-400.0,0.00021917,2]
[387529956,1758755449029,-400.0,0.00021917,2]
[387529957,1758755449038,-400.0,0.00021917,2]
[387529958,1758755449048,-400.55038608,0.00021917,2]
[387529959,1758755449058,-2501.27,0.00021917,2]
[387529960,1758755449069,-2355.84,0.00021917,2]
[387529961,1758755449080,-400.0,0.00021917,2]
[387529962,1758755449091,-1999.78,0.00021917,2]
[387529963,1758755449100,-2445.78,0.00021917,2]
[387529964,1758755449110,-1536.98,0.00021917,2]
[387529965,1758755449120,-920.97,0.00021917,2]
[387529966,1758755449129,-1672.29,0.00021917,2]
[387529967,1758755449139,-400.0,0.00021917,2]
[387529968,1758755449149,-1090.48,0.00021917,2]
[387529969,1758755449160,-865.31,0.00021917,2]
[387529970,1758755449169,-4572.63,0.00021917,2]
[387529971,1758755449179,-400.0,0.00021917,2]
[387529972,1758755449188,-419.83565652,0.00021917,2]
[387529973,1758755449200,-2379.38434348,0.00021917,2]
[387529974,1758755449210,-7620.62,0.00021917,2]
[387529975,1758755449220,-777.2,0.00021917,2]
[387529976,1758755449229,-3107.68,0.00021917,2]
[387529977,1758755449239,-776.27173904,0.00021917,2]
[387529978,1758755450191,-1430.58826096,0.00021917,2]
[387529979,1758755450200,-1816.0,0.00021917,2]
[387529980,1758755450209,-151.0,0.00021917,2]
[387529981,1758755450219,-400.0,0.00021917,2]
[387529982,1758755450228,-774.187785,0.00021917,2]
[387529983,1758755450237,-400.0,0.00021917,2]
[387529984,1758755450246,-342.39395404,0.00021917,2]
[387529985,1758755450261,-1474.70604596,0.00021917,2]
[387529986,1758755450270,-151.0,0.00021917,2]
[387529987,1758755450279,-400.0,0.00021917,2]
[387529988,1758755450288,-500.0,0.00021917,2]
[387529989,1758755450296,-774.187785,0.00021917,2]
[387529990,1758755450304,-966.59,0.00021917,2]
[387529991,1758755450311,-500.0,0.00021917,2]
[387529992,1758755450319,-500.0,0.00021917,2]
[387529993,1758755450326,-1226.58,0.00021917,2]
[387529994,1758755450335,-151.0,0.00021917,2]
[387529995,1758755450344,-774.187785,0.00021917,2]
[387529996,1758755450352,-1476.73,0.00021917,2]
[387529997,1758755450360,-151.0,0.00021917,2]
[387529998,1758755450369,-151.0,0.00021917,2]
[387529999,1758755450379,-803.01838404,0.00021917,2]
[387530000,1758755451468,-407.08050642,0.00021917,2]
[387530001,1758755451482,-1795.24485051,0.00021917,2]
[387530002,1758755451509,-3509.27625903,0.00021917,2]
[387530003,1758755451519,-697.54,0.00021917,2]
[387530004,1758755451528,-774.187785,0.00021917,2]
[387530005,1758755451539,-400.0,0.00021917,2]
[387530006,1758755451548,-2226.89,0.00021917,2]
[387530007,1758755451557,-2879.25,0.00021917,2]
[387530008,1758755451566,-151.0,0.00021917,2]
[387530009,1758755451575,-151.0,0.00021917,2]
[387530010,1758755451584,-151.0,0.00021917,2]
[387530011,1758755451593,-151.0,0.00021917,2]
[387530012,1758755451603,-400.0,0.00021917,2]
[387530013,1758755451612,-1957.66,0.00021917,2]
[387530014,1758755451621,-151.0,0.00021917,2]
[387530015,1758755451631,-3406.36,0.00021917,2]
[387530016,1758755451641,-381.80272109,0.00021917,2]
[387530017,1758755451660,-18.19727891,0.00021917,2]
[387530018,1758755451669,-702.57454586,0.00021917,2]
[387530019,1758755674069,160.43,0.00021945,30]
[387530020,1758755736239,173.26,0.00010153,2]
[387530021,1758755798750,200.0,0.00019,2]
[387530026,1758756374676,260.696175,0.0001949,2]
[387530027,1758756420666,250.0,0.00015,2]
[387530028,1758756477992,666.0,0.00019453,3]
[387530029,1758756492478,500.0,0.00013699,2]
[387530030,1758756494355,630.80428135,0.000135,2]
[387530031,1758756501430,1905.12667052,0.0001,2]
[387530032,1758756503104,250.0,0.000185,2]
[387530033,1758756509880,220.82874454,0.0001,2]
[387530036,1758756522797,859.60492327,0.0001,2]
[387530042,1758756631812,-150.0,0.0001953,7]
[387530043,1758756631824,-250.0,0.00019538,2]
[387530044,1758756631835,-2500.0,0.00019568,2]
[387530045,1758756631846,-245.0,0.0001968,2]
[387530046,1758756631856,-2712.05671544,0.000199,2]
[387530047,1758756631866,-300.0,0.00019946,2]
[387530048,1758756631875,-300.0,0.00019947,2]
[387530049,1758756631887,-300.0,0.00019947,2]
[387530050,1758756631897,-293.0,0.00019947,2]
[387530051,1758756631907,-1200.0,0.00019947,2]
[387530052,1758756631918,-150.0,0.00019948,2]
[387530053,1758756631927,-150.0,0.00019948,2]
[387530054,1758756631937,-150.0,0.00019948,2]
[387530055,1758756631946,-150.0,0.00019948,2]
[387530056,1758756631956,-150.0,0.00019948,2]
[387530057,1758756631965,-150.0,0.00019948,2]
[387530058,1758756631974,-163.610546,0.00019948,2]
[387530059,1758756631983,-151.35766314,0.00019948,2]
[387530060,1758756631993,-180.67042435,0.00019948,2]
[387530061,1758756632003,-150.0,0.00019948,2]
[387530062,1758756632012,-150.00000001,0.00019948,2]
[387530063,1758756632021,-150.0,0.00019948,2]
[387530064,1758756632031,-659.0,0.00019999,2]
[387530065,1758756632041,-5008.33988712,0.00019999,2]
[387530066,1758756632052,-179.48929693,0.00019999,2]
[387530067,1758756632061,-292.7993922,0.00019999,2]
[387530068,1758756632071,-500.0,0.00019999,2]
[387530069,1758756632081,-324.47427196,0.00019999,2]
[387530070,1758756632090,-340.38790975,0.00019999,2]
[387530071,1758756632100,-5000.0,0.0002,2]
[387530072,1758756632109,-139837.80730866,0.0002,2]
[387530073,1758756632119,-73655.66754568,0.0002,2]
[387530074,1758756632128,-150.79,0.0002,2]
[387530075,1758756632138,-150.91,0.0002,2]
[387530076,1758756632147,-320.42,0.00020045,2]
[387530077,1758756632157,-2712.05671538,0.00020143,2]
[387530078,1758756632166,-11735.11,0.00020163,2]
[387530079,1758756632176,-238.77,0.0002017,2]
[387530080,1758756632185,-180.11,0.00020192,2]
[387530081,1758756632194,-200.0,0.00020206,2]
[387530082,1758756632203,-307.587,0.00020206,2]
[387530083,1758756632213,-151.0,0.00020206,2]
[387530084,1758756632223,-151.0,0.00020206,2]
[387530085,1758756632232,-151.0,0.00020206,2]
[387530086,1758756632242,-151.0,0.00020206,2]
[387530088,1758756632252,-151.0,0.00020206,2]
[387530090,1758756632261,-163.83049568,0.00020206,2]
[387530092,1758756632271,-500.0,0.00020206,2]
[387530094,1758756632280,-466.00118554,0.00020206,2]
[387530096,1758756632289,-151.0,0.00020206,2]
[387530098,1758756632299,-1000.0,0.00020213,2]
[387530100,1758756632308,-33379.71,0.00020218,2]
[387530102,1758756632317,-191.3,0.00020241,2]
[387530104,1758756632327,-200.0,0.00020301,2]
[387530106,1758756632336,-173.26,0.00020307,2]
[387530108,1758756632347,-171.07,0.00020316,2]
[387530110,1758756632356,-887.48,0.00020325,2]
[387530112,1758756632365,-2712.05671538,0.00020387,2]
[387530114,1758756632375,-200.0,0.000204,2]
[387530117,1758756632384,-165.93,0.00020471,2]
[387530119,1758756632394,-200.34246745,0.00020479,2]
[387530121,1758756632403,-185.0,0.00020512,2]
[387530123,1758756632412,-2712.05671538,0.0002063,2]
[387530125,1758756632421,-16266.43,0.00020673,2]
[387530127,1758756632430,-22315.75169279,0.000207,2]
[387530129,1758756632439,-213.58,0.00020731,2]
[387530131,1758756632449,-13531.96425532,0.0002077,2]
[387530133,1758756632459,-945.78,0.0002078,2]
[387530135,1758756632468,-472.99,0.0002078,2]
[387530137,1758756632477,-5513.0,0.000208,5]
[387530139,1758756632487,-29592.54975314,0.0002085,2]
[387530141,1758756632495,-240.0,0.0002087,2]
[387530143,1758756632505,-2712.05671538,0.00020874,2]
[387530145,1758756632514,-500.0,0.00020904,2]
[387530147,1758756632523,-181.51635015,0.0002095,2]
[387530149,1758756632533,-617.11,0.00020986,2]
[387530151,1758756632543,-5000.0,0.00021,2]
[387530153,1758756632552,-91028.54446183,0.00021,2]
[387530155,1758756632562,-6784.90923536,0.00021,2]
[387530157,1758756632571,-149076.277642,0.00021,2]
[387530159,1758756632580,-41148.84475397,0.00021,2]
[387530161,1758756632590,-1174.69052685,0.00021,2]
[387530163,1758756632599,-193.89228897,0.00021,2]
[387530165,1758756632608,-322.6107,0.0002105,2]
[387530167,1758756632617,-151.0,0.0002105,2]
[387530169,1758756632627,-646.65982734,0.0002105,2]
[387530171,1758756632636,-285.16739537,0.0002105,2]
[387530173,1758756632646,-151.0,0.0002105,2]
[387530175,1758756632655,-248.71531821,0.0002105,2]
[387530177,1758756632665,-150.0,0.00021056,4]
[387530179,1758756632675,-417.0,0.000211,2]
[387530181,1758756632684,-2712.05671538,0.00021117,2]
[387530183,1758756632694,-181.5163501,0.00021259,2]
[387530185,1758756632703,-2712.05671538,0.00021361,2]
[387530187,1758756632712,-2087.68678164,0.0002145,2]
[387530189,1758756632722,-195.0,0.0002145,2]
[387530191,1758756632731,-300.0,0.0002145,2]
[387530193,1758756632740,-150.0,0.0002145,2]
[387530195,1758756632751,-7000.0,0.00021465,2]
[387530197,1758756632760,-404.0,0.00021483,2]
[387530199,1758756632769,-250.0,0.00021483,2]
[387530201,1758756632779,-300.0,0.000215,2]
[387530203,1758756632789,-2500.0,0.000215,2]
[387530205,1758756632798,-250.0,0.000215,2]
[387530207,1758756632809,-172.84888557,0.000215,2]
[387530209,1758756632820,-218.62022395,0.000215,2]
[387530211,1758756632829,-381.4,0.0002155,2]
[387530213,1758756632839,-958.11,0.00021553,2]
[387530215,1758756632848,-181.5163501,0.00021569,2]
[387530217,1758756632859,-151.0,0.00021598,2]
[387530219,1758756632868,-151.0,0.00021598,2]
[387530221,1758756632878,-2712.05671538,0.00021604,2]
[387530223,1758756632888,-172.52,0.00021607,2]
[387530225,1758756632899,-2423.26,0.00021617,2]
[387530227,1758756632908,-404.0,0.00021631,2]
[387530229,1758756632917,-1000.0,0.00021643,3]
[387530256,1758756633179,-171.07,0.00021671,2]
[387530258,1758756633211,-5432.99892,0.000217,2]
[387530259,1758756633221,-420.0,0.00021721,2]
[387530260,1758756633231,-300.0,0.00021721,2]
[387530261,1758756633241,-381.4,0.00021722,2]
[387530262,1758756633250,-472.99,0.00021739,2]
[387530263,1758756633260,-472.99,0.00021739,2]
[387530264,1758756633269,-472.99,0.00021739,2]
[387530265,1758756633279,-472.99,0.00021739,2]
[387530266,1758756633288,-945.98,0.00021739,2]
[387530267,1758756633298,-617.11,0.00021773,2]
[387530268,1758756633308,-500.0,0.0002178,2]
[387530269,1758756633318,-500.0,0.0002178,2]
[387530270,1758756633328,-500.0,0.0002178,2]
[387530271,1758756633337,-500.0,0.0002178,2]
[387530272,1758756633347,-401.61115888,0.0002178,2]
[387530273,1758756633357,-516.71825645,0.00021781,2]
[387530274,1758756633366,-158.22622828,0.00021781,2]
[387530275,1758756633376,-1165.73595829,0.00021781,2]
[387530276,1758756633386,-489.15359711,0.00021794,2]
[387530277,1758756633395,-1000.0,0.00021808,3]
[387530278,1758756633405,-468.71337028,0.00021817,2]
[387530279,1758756633415,-1680.0,0.00021826,2]
[387530280,1758756633425,-2712.05671538,0.00021848,2]
[387530281,1758756633435,-153.97,0.0002187,2]
[387530282,1758756633445,-153.97,0.0002187,2]
[387530283,1758756633454,-181.5163501,0.00021878,2]
[387530284,1758756633464,-329366.55325017,0.0002188,2]
[387530285,1758756633512,-1835.25799297,0.0002188,2]
[387530286,1758756633547,-1425.88347486,0.0002188,2]
[387530287,1758756633559,-1500.0,0.0002188,2]
[387530288,1758756633605,-513.77829294,0.0002188,2]
[387530289,1758756633621,-9741.62262582,0.0002188,2]
[387530290,1758756633633,-34970.84534051,0.0002188,2]
[387530291,1758756633653,-500.0,0.0002188,2]
[387530292,1758756633677,-287.44003504,0.0002188,2]
[387530293,1758756638209,-306.86478109,0.00020917,2]
[387530295,1758756639670,160.43,0.00021945,30]
[387530296,1758756639777,-13225.09947418,0.00020917,2]
[387530297,1758756639787,-13531.96425527,0.00021064,2]
[387530298,1758756639797,-424530.05469916,0.0002188,2]
[387530299,1758756639808,-385.0,0.0002189,2]
[387530300,1758756639818,-381.4,0.00021894,2]
[387530301,1758756639831,-2000.0,0.000219,2]
[387530302,1758756639840,-1000.0,0.000219,2]
[387530303,1758756639851,-13614.04486044,0.000219,2]
[387530304,1758756639861,-2423.22,0.000219,2]
[387530305,1758756639873,-153.97,0.00021906,2]
[387530306,1758756639883,-153.97,0.00021906,2]
[387530307,1758756639893,-194.24121537,0.00021907,2]
[387530308,1758756639904,-153.97,0.00021907,2]
[387530309,1758756639914,-404.0,0.00021915,2]
[387530310,1758756639924,-1186.5753389,0.00021916,5]
[387530311,1758756639934,-5000.0,0.00021916,2]
[387530312,1758756639943,-164.794399,0.00021916,2]
[387530313,1758756639954,-151.0,0.00021916,2]
[387530314,1758756639964,-151.0,0.00021916,2]
[387530315,1758756639974,-151.0,0.00021916,2]
[387530316,1758756639984,-151.0,0.00021916,2]
[387530317,1758756639994,-152.59863548,0.00021916,2]
[387530318,1758756640004,-151.0,0.00021916,2]
[387530319,1758756640014,-151.0,0.00021916,2]
[387530320,1758756640024,-151.0,0.00021916,2]
[387530321,1758756640034,-151.0,0.00021916,2]
[387530322,1758756640044,-341.518352,0.00021916,2]
[387530323,1758756640055,-341.518352,0.00021916,2]
[387530324,1758756640065,-341.518352,0.00021916,2]
[387530325,1758756640075,-341.518352,0.00021916,2]
[387530326,1758756640085,-151.0,0.00021916,2]
[387530327,1758756640095,-151.0,0.00021916,2]
[387530328,1758756640105,-151.0,0.00021916,2]
[387530329,1758756640115,-151.0,0.00021916,2]
[387530330,1758756640125,-151.0,0.00021916,2]
[387530331,1758756640135,-151.0,0.00021916,2]
[387530332,1758756640149,-151.0,0.00021916,2]
[387530333,1758756640159,-151.0,0.00021916,2]
[387530334,1758756640170,-151.0,0.00021916,2]
[387530335,1758756640180,-151.0,0.00021916,2]
[387530336,1758756640190,-203.707728,0.00021916,2]
[387530337,1758756640200,-151.0,0.00021916,2]
[387530338,1758756640211,-151.0,0.00021916,2]
[387530339,1758756640221,-151.0,0.00021916,2]
[387530340,1758756640231,-151.0,0.00021916,2]
[387530341,1758756640242,-151.0,0.00021916,2]
[387530342,1758756640253,-151.0,0.00021916,2]
[387530343,1758756640263,-151.0,0.00021916,2]
[387530344,1758756640274,-151.0,0.00021916,2]
[387530345,1758756640284,-151.0,0.00021916,2]
[387530346,1758756640295,-840.380194,0.00021916,2]
[387530347,1758756640305,-840.380194,0.00021916,2]
[387530348,1758756640316,-840.380194,0.00021916,2]
[387530349,1758756640326,-840.380194,0.00021916,2]
[387530350,1758756640336,-151.0,0.00021916,2]
[387530351,1758756640346,-151.0,0.00021916,2]
[387530352,1758756640356,-151.0,0.00021916,2]
[387530353,1758756640367,-151.0,0.00021916,2]
[387530354,1758756640377,-151.0,0.00021916,2]
[387530355,1758756640387,-151.0,0.00021916,2]
[387530356,1758756640397,-151.0,0.00021916,2]
[387530357,1758756640407,-181.342995,0.00021916,2]
[387530358,1758756640417,-181.342995,0.00021916,2]
[387530359,1758756640427,-151.0,0.00021916,2]
[387530360,1758756640437,-181.342995,0.00021916,2]
[387530361,1758756640447,-181.342995,0.00021916,2]
[387530362,1758756640457,-151.0,0.00021916,2]
[387530363,1758756640467,-189.156989,0.00021916,2]
[387530364,1758756640477,-151.0,0.00021916,2]
[387530365,1758756640487,-217.231032,0.00021916,2]
[387530366,1758756640497,-217.231032,0.00021916,2]
[387530367,1758756640507,-151.0,0.00021916,2]
[387530368,1758756640517,-151.0,0.00021916,2]
[387530369,1758756640527,-836.495504,0.00021916,2]
[387530370,1758756640538,-217.231032,0.00021916,2]
[387530371,1758756640547,-151.0,0.00021916,2]
[387530372,1758756640557,-836.495504,0.00021916,2]
[387530373,1758756640568,-217.231032,0.00021916,2]
[387530374,1758756640577,-151.0,0.00021916,2]
[387530375,1758756640587,-836.495504,0.00021916,2]
[387530376,1758756640598,-151.0,0.00021916,2]
[387530377,1758756640607,-836.495504,0.00021916,2]
[387530378,1758756640618,-151.0,0.00021916,2]
[387530379,1758756640627,-151.0,0.00021916,2]
[387530380,1758756640642,-151.0,0.00021916,2]
[387530381,1758756640652,-151.602374,0.00021916,2]
[387530382,1758756640662,-151.0,0.00021916,2]
[387530383,1758756640672,-151.0,0.00021916,2]
[387530384,1758756640682,-151.0,0.00021916,2]
[387530385,1758756640692,-151.0,0.00021916,2]
[387530386,1758756640708,-666.0,0.00021916,2]
[387530387,1758756640720,-300.0,0.00021916,2]
[387530388,1758756640730,-300.0,0.00021916,2]
[387530389,1758756640740,-300.0,0.00021916,2]
[387530390,1758756640750,-300.0,0.00021916,2]
[387530391,1758756640760,-64411.16555408,0.00021916,2]
[387530392,1758756640770,-7242.8772056,0.00021917,2]
[387530395,1758756642934,-151.0,0.00021916,2]
[387530396,1758756642944,-151.0,0.00021916,2]
[387530397,1758756642953,-206.975657,0.00021916,2]
[387530398,1758756642965,-1578.824341,0.00021917,2]
[387530399,1758756643180,-1174.910634,0.00021917,2]
[387530436,1758756687884,16482.96006243,0.0003,120]
[387530437,1758756699012,159.67,0.00010484,2]
[387530441,1758757520958,638.5,0.00019499,2]
[387530442,1758757575216,235.0,0.000193,2]
[387530457,1758757762645,153.98,0.00010238,2]
[387530458,1758757762880,153.98,0.00015357,2]
[387530460,1758757825644,1000.0,0.00030137,120]
[387530463,1758757832289,-719.37505185,0.00019947,2]
[387530474,1758757832511,-0.62494815,0.00019947,2]
[387530476,1758757832521,-150.0,0.00019948,2]
[387530478,1758757832531,-150.0,0.00019948,2]
[387530480,1758757832540,-150.0,0.00019948,2]
[387530482,1758757832550,-150.0,0.00019948,2]
[387530484,1758757832559,-1.82671348,0.00019948,2]
[387530486,1758757832570,-148.17328652,0.00019948,2]
[387530488,1758757832579,-150.0,0.00019948,2]
[387530490,1758757832589,-150.0,0.00019948,2]
[387530492,1758757832598,-150.0,0.00019948,2]
[387530494,1758757832607,-150.0,0.00019948,2]
[387530496,1758757832616,-150.0,0.00019948,2]
[387530497,1758757832626,-150.0,0.00019948,2]
[387530499,1758757832635,-150.0,0.00019948,2]
[387530501,1758757832645,-3849.0578991,0.0002,2]
[387530503,1758757832654,-150.74,0.000203,2]
[387530506,1758757832663,-152.71,0.000203,2]
[387530508,1758757832678,-152.73,0.000203,2]
[387530510,1758757832687,-150.82,0.000203,2]
[387530512,1758757832696,-150.0,0.00020391,4]
[387530514,1758757832705,-153.98,0.00020475,2]
[387530516,1758757832715,-230.0,0.0002048,2]
[387530518,1758757832725,-150.0,0.00020506,7]
[387530520,1758757832734,-171.07,0.00020809,2]
[387530522,1758757832743,-151.95,0.00020812,2]
[387530524,1758757832752,-151.27,0.00020821,2]
[387530526,1758757832762,-150.73,0.00020821,2]
[387530528,1758757832772,-524.58,0.00020826,2]
[387530530,1758757832781,-532.94,0.00020832,2]
[387530532,1758757832791,-150.0,0.00020835,4]
[387530534,1758757832801,-1000.0,0.00020836,2]
[387530536,1758757832810,-150.05,0.00020848,2]
[387530538,1758757832819,-151.42,0.00020848,2]
[387530540,1758757832829,-159.67,0.00020968,2]
[387530542,1758757832838,-248.71531821,0.00020982,2]
[387530544,1758757832847,-370.26,0.00020986,2]
[387530546,1758757832856,-170.86,0.00021009,2]
[387530548,1758757832866,-527.7,0.00021013,2]
[387530550,1758757832875,-224.43916718,0.00021073,2]
[387530552,1758757832885,-151.0,0.00021073,2]
[387530554,1758757832894,-170.77417751,0.00021073,2]
[387530556,1758757832903,-500.0,0.00021073,2]
[387530558,1758757832912,-500.0,0.00021073,2]
[387530560,1758757832921,-500.0,0.00021073,2]
[387530562,1758757832930,-500.0,0.00021073,2]
[387530564,1758757832939,-500.0,0.00021073,2]
[387530566,1758757832948,-322.6107,0.00021073,2]
[387530568,1758757832957,-534.88,0.00021086,2]
[387530569,1758757832967,-518.13,0.00021086,2]
[387530571,1758757832976,-521.77,0.00021208,2]
[387530574,1758757832987,-523.44,0.0002121,2]
[387530575,1758757832996,-517.4,0.0002121,2]
[387530578,1758757833006,-150.0,0.00021278,4]
[387530579,1758757833015,-150.0,0.000215,2]
[387530582,1758757833025,-411.93,0.000215,2]
[387530584,1758757833034,-150.0,0.000215,2]
[387530585,1758757833044,-168.0,0.00021543,2]
[387530588,1758757833054,-286.1,0.00021557,2]
[387530589,1758757833063,-1000.0,0.000216,2]
[387530592,1758757833077,-1000.0,0.00021643,3]
[387530594,1758757833086,-411.93,0.00021644,2]
[387530596,1758757833095,-226.0,0.0002167,2]
[387530598,1758757833105,-411.93,0.00021699,2]
[387530600,1758757833115,-411.93,0.00021699,2]
[387530602,1758757833125,-152.15,0.000217,2]
[387530604,1758757833134,-427.76792608,0.000217,2]
[387530649,1758757837873,-294.499998,0.000217,2]
[387530650,1758757837904,-277.73207592,0.000217,2]
[387530651,1758757837914,-669.81163038,0.000217,2]
[387530652,1758757838537,1311.2,0.00030137,120]
[387530653,1758757843596,-90.21640132,0.000217,2]
[387530681,1758757846733,-548.54251611,0.000217,2]
[387530683,1758758299859,500.0,0.00013699,2]